bitfinex-derivatives/quotes_BNBF0:USTF0_20250211
["timestamp","ask_amount","ask_price","bid_price","bid_amount"]
[1739293940839,0.31715826,630.6,629.43,0.29172596]
[1739293941046,0.31715826,630.6,629.42,0.31775285]
[1739293941541,5.94323637,630.6,629.42,0.31775285]
[1739293942840,2.18639801,630.6,629.42,0.31775285]
[1739293943139,0.31715826,630.6,629.42,0.31775285]
[1739293945039,5.62607811,630.59,629.42,0.31775285]
[1739293945237,5.62607811,630.58,629.43,0.29170733]
[1739293945539,3.75683836,630.57,629.43,0.29170733]
[1739293945734,3.75683836,630.56,629.43,0.29170733]
[1739293945938,3.75683836,630.55,629.43,0.29170733]
[1739293946138,3.75683836,630.57,629.43,0.29170733]
[1739293946439,1.86923975,630.58,629.43,0.29170733]
[1739293946739,0.31715826,630.6,629.43,0.29170733]
[1739293947140,0.31715826,630.6,629.44,0.29166384]
[1739293947439,0.31715826,630.6,629.45,0.29166384]
[1739293947635,0.31715826,630.6,629.43,0.29166384]
[1739293947840,0.31715826,630.6,629.44,0.29166384]
[1739293948036,0.31715826,630.6,629.42,0.31775285]
[1739293948242,0.31715826,630.6,629.43,0.29165534]
[1739293949041,0.31715826,630.6,629.44,0.29167665]
[1739293949241,0.31715826,630.6,629.43,0.29167665]
[1739293949543,0.31715826,630.6,629.44,0.2916992]
[1739293949738,0.31715826,630.6,629.43,0.2916992]
[1739293958350,0.31715826,630.6,629.42,0.31775285]
[1739293964249,0.31715826,630.6,628.94,1.16294262]
[1739293964447,0.31715826,630.6,628.95,0.60975847]
[1739293964651,0.31715826,630.6,628.96,0.29176817]
[1739293965945,5.62607811,630.59,628.96,0.29176817]
[1739293966145,8.14804565,630.58,628.97,0.31798018]
[1739293966351,5.62607811,630.57,628.98,0.29176817]
[1739293966950,1.86923975,630.57,628.98,0.29176817]
[1739293967155,2.52196754,630.58,628.98,0.29176817]
[1739293967653,0.31715826,630.6,628.98,0.29176817]
[1739293967854,1.17098318,630.3,628.98,0.29176817]
[1739293968676,1.17098318,630.3,628.99,0.31797007]
[1739293968854,1.17098318,630.3,629.0,0.29179484]
[1739293969055,1.17098318,630.3,629.01,0.31795996]
[1739293969354,1.17098318,630.3,629.02,0.29179484]
[1739293969556,1.17098318,630.3,629.03,0.60974469]
[1739293969756,1.17098318,630.3,629.04,1.28122367]
[1739293969951,1.17098318,630.3,629.05,1.28121862]
[1739293970156,1.17098318,630.3,629.06,1.28121356]
[1739293970351,1.17098318,630.3,629.07,0.60972448]
[1739293970651,1.17098318,630.3,629.08,0.60971942]
[1739293970955,5.62607811,630.39,629.09,0.60971437]
[1739293971150,5.62607811,630.39,629.1,0.29179484]
[1739293971356,3.75683836,630.38,629.1,0.29179484]
[1739293972658,5.62607811,630.48,629.1,0.29179484]
[1739293972858,5.94330176,630.47,629.1,0.29179484]
[1739293973054,2.52196754,630.49,629.1,0.29179484]
[1739293973055,1.17098318,630.42,629.1,0.29179484]
[1739293973259,5.94333196,630.41,629.1,0.29179484]
[1739293973460,4.07409724,630.4,629.1,0.29179484]
[1739293973653,3.75683836,630.39,629.1,0.29179484]
[1739293973853,3.75683836,630.38,629.1,0.29179484]
[1739293974054,3.75683836,630.37,629.1,0.29179484]
[1739293974259,3.75683836,630.36,629.1,0.29179484]
[1739293974555,3.75683836,630.39,629.1,0.29179484]
[1739293974759,3.75683836,630.38,629.1,0.29179484]
[1739293974959,3.75683836,630.39,629.1,0.29179484]
[1739293975158,3.75683836,630.38,629.1,0.29179484]
[1739293975360,3.75683836,630.39,629.1,0.29179484]
[1739293975559,3.75683836,630.38,629.1,0.29179484]
[1739293975854,3.75683836,630.39,629.1,0.29179484]
[1739293976160,0.31727398,630.37,628.73,1.16294262]
[1739293976356,5.64163252,630.36,628.73,1.16294262]
[1739293976558,0.31728908,630.34,628.74,0.29204954]
[1739293976859,5.64163252,630.33,628.73,1.16294262]
[1739293977059,0.31730418,630.31,628.73,1.16294262]
[1739293977253,5.64163252,630.3,628.73,1.16294262]
[1739293977456,3.74453334,630.29,628.73,1.16294262]
[1739293977659,0.31731928,630.28,628.73,1.16294262]
[1739293978762,0.31731928,630.28,628.11,1.65895322]
[1739293978763,1.17098318,630.11,628.11,1.65895322]
[1739293978957,1.17098318,630.11,628.12,0.2920969]
[1739293979356,0.31741497,630.09,628.14,0.31840035]
[1739293979563,0.31741497,630.09,628.15,0.2920969]
[1739293979764,0.31741497,630.09,628.17,0.31838515]
[1739293980060,0.31741497,630.09,628.18,0.2920969]
[1739293980263,0.31741497,630.09,628.2,0.31836994]
[1739293980490,0.31741497,630.09,628.21,0.2920969]
[1739293980663,0.31741497,630.09,628.23,0.31835474]
[1739293980861,0.31741497,630.09,628.24,0.2920969]
[1739293981064,0.31741497,630.09,628.26,0.31833954]
[1739293981365,0.31741497,630.09,628.27,0.2920969]
[1739293981567,0.31741497,630.09,628.28,0.3183294]
[1739293981759,0.31741497,630.09,628.29,0.2920969]
[1739293981959,0.31741497,630.09,628.3,0.31831927]
[1739293982161,0.31741497,630.09,628.31,0.2920969]
[1739293982767,0.31741497,630.09,628.32,0.31830914]
[1739293985068,0.31741497,630.09,628.33,0.29213333]
[1739293985366,0.31741497,630.09,628.32,0.31830914]
[1739293986964,0.31741497,630.09,628.33,0.29208553]
[1739293987364,0.31741497,630.09,628.34,0.31829901]
[1739293987566,0.31741497,630.09,628.35,0.29208553]
[1739293987764,0.31741497,630.09,628.36,0.31828887]
[1739293987973,0.31741497,630.09,628.37,0.29208553]
[1739293988894,0.31741497,630.09,628.38,0.61036427]
[1739293989214,0.31741497,630.09,628.39,1.28247285]
[1739293989370,0.31741497,630.09,628.4,0.61035414]
[1739293989564,0.31741497,630.09,627.96,0.67211364]
[1739293989565,0.31741497,630.09,628.41,0.61034908]
[1739293989775,0.31741497,630.09,628.42,0.61034401]
[1739293989967,0.31741497,630.09,628.43,1.28245259]
[1739293990172,0.31741497,630.09,628.44,0.61033389]
[1739293990467,0.31741497,630.09,628.45,0.29208553]
[1739293992470,0.31741497,630.09,628.46,0.31823823]
[1739293992672,0.31741497,630.09,628.47,0.29208553]
[1739293993671,0.31741497,630.09,628.48,0.3182281]
[1739293993869,0.31741497,630.09,628.49,0.29196335]
[1739293994068,0.31741497,630.09,628.51,0.31821291]
[1739293994274,0.31741497,630.09,628.52,0.29196335]
[1739293994575,0.31741497,630.09,628.53,0.31820279]
[1739293994774,0.31741497,630.09,628.54,0.29196335]
[1739293994973,0.31741497,630.09,628.55,0.31819266]
[1739293995274,0.31741497,630.09,628.56,0.29196335]
[1739293995482,0.31741497,630.09,628.57,0.31818254]
[1739293995676,0.31741497,630.09,628.58,0.29196335]
[1739293995875,0.31741497,630.09,628.59,0.31817241]
[1739293996170,0.31741497,630.09,628.6,0.29196335]
[1739293996376,0.31741497,630.09,628.61,0.31816229]
[1739293996573,0.31741497,630.09,628.62,0.29196335]
[1739293996875,0.31741497,630.09,628.63,0.31815217]
[1739293997073,0.31741497,630.09,628.64,0.29196335]
[1739293997269,0.31741497,630.09,628.65,0.31814205]
[1739293997474,0.31741497,630.09,628.66,0.29196335]
[1739293997674,0.31741497,630.09,628.67,0.31813192]
[1739293997874,0.31741497,630.09,628.68,0.29196335]
[1739293998072,0.31741497,630.09,628.69,0.3181218]
[1739293998273,0.31741497,630.09,628.7,0.29196335]
[1739293998679,0.31741497,630.09,628.69,0.3181218]
[1739294003479,0.31741497,630.09,628.7,0.29204161]
[1739294004079,0.31741497,630.09,628.69,0.3181218]
[1739294007882,0.31741497,630.09,628.0,1.65948721]
[1739294008183,0.31741497,630.09,628.01,0.9642819]
[1739294008677,0.31741497,630.09,628.03,0.31845612]
[1739294008877,0.31741497,630.09,628.04,0.29211731]
[1739294009082,0.31741497,630.09,628.06,0.31844091]
[1739294009284,0.31741497,630.09,628.07,0.29211731]
[1739294009583,0.31741497,630.09,628.09,0.3184257]
[1739294009783,0.31741497,630.09,628.1,0.29211731]
[1739294009986,0.31741497,630.09,628.12,0.31841049]
[1739294010179,0.31741497,630.09,628.13,0.29211731]
[1739294010383,0.31741497,630.09,628.14,0.31840035]
[1739294010683,0.31741497,630.09,628.15,0.29211731]
[1739294010885,0.31741497,630.09,628.17,0.31838515]
[1739294011078,0.31741497,630.09,628.18,0.29211731]
[1739294011285,0.31741497,630.09,628.2,0.31836994]
[1739294011486,0.31741497,630.09,628.21,0.29211731]
[1739294011685,0.31741497,630.09,628.22,0.31835981]
[1739294011884,0.31741497,630.09,628.23,0.29211731]
[1739294012085,0.31741497,630.09,628.24,0.31834967]
[1739294012286,0.31741497,630.09,628.25,0.29211731]
[1739294012488,0.31741497,630.09,628.26,0.31833954]
[1739294012685,0.31741497,630.09,628.27,0.29211731]
[1739294012884,0.31741497,630.09,628.28,0.3183294]
[1739294013187,0.31741497,630.09,628.29,0.29211731]
[1739294013380,0.31741497,630.09,628.3,0.31831927]
[1739294013687,0.31741497,630.09,628.31,0.29211731]
[1739294013887,0.31741497,630.09,628.32,0.31830914]
[1739294014084,0.31741497,630.09,628.33,0.29211731]
[1739294014287,0.31741497,630.09,628.34,0.31829901]
[1739294014585,0.31741497,630.09,628.35,0.29211731]
[1739294014787,0.31741497,630.09,628.36,0.31828887]
[1739294015110,0.31741497,630.09,628.37,0.29211731]
[1739294015283,0.31741497,630.09,628.38,0.31827874]
[1739294015689,0.31741497,630.09,628.39,0.29211731]
[1739294015989,0.31741497,630.09,628.4,0.31826861]
[1739294016200,0.31741497,630.09,628.41,0.29211731]
[1739294016391,0.31741497,630.09,628.42,0.31825848]
[1739294016583,0.31741497,630.09,628.43,0.29211731]
[1739294016784,0.31741497,630.09,628.44,0.31824836]
[1739294016987,0.31741497,630.09,628.45,0.29211731]
[1739294017191,0.31741497,630.09,628.46,0.31823823]
[1739294017395,0.31741497,630.09,628.47,0.29206657]
[1739294017586,0.31741497,630.09,628.48,0.3182281]
[1739294017787,0.31741497,630.09,628.49,0.29206657]
[1739294019290,0.31741497,630.09,628.5,0.29204666]
[1739294019491,0.31741497,630.09,628.51,0.29204666]
[1739294019689,0.31741497,630.09,628.51,0.31821291]
[1739294019893,0.31741497,630.09,628.52,0.29204666]
[1739294021989,0.31741497,630.09,628.13,1.16294262]
[1739294022391,5.68114103,630.08,628.13,1.16294262]
[1739294022596,5.68114103,630.07,628.14,0.29238546]
[1739294022795,0.31743512,630.05,628.13,1.16294262]
[1739294022996,5.68114103,630.04,628.14,0.29239586]
[1739294023194,0.31745023,630.02,628.13,1.16294262]
[1739294023496,6.30405062,630.01,628.13,1.16294262]
[1739294023690,0.31746535,629.99,628.13,1.16294262]
[1739294024090,2.81410792,629.99,628.13,1.16294262]
[1739294025095,1.17098318,629.4,627.4,1.16294262]
[1739294025295,0.31776799,629.39,627.42,0.31876573]
[1739294025493,0.31776799,629.39,627.43,0.29230641]
[1739294025697,0.31776799,629.39,627.45,0.31875049]
[1739294025997,0.31776799,629.39,627.46,0.29230641]
[1739294026198,0.31776799,629.39,627.48,0.31873525]
[1739294026396,0.31776799,629.39,627.49,0.29230641]
[1739294026595,0.31776799,629.39,627.51,0.31872002]
[1739294026928,0.31776799,629.39,627.52,0.29230641]
[1739294027095,0.31776799,629.39,627.54,0.31870478]
[1739294027300,0.31776799,629.39,627.55,0.29230641]
[1739294027499,0.31776799,629.39,627.57,0.31868954]
[1739294027699,0.31776799,629.39,627.58,0.29230641]
[1739294028295,0.31776799,629.39,627.6,0.31867431]
[1739294028495,0.31776799,629.39,627.61,0.29230641]
[1739294028694,0.31776799,629.39,627.63,0.31865908]
[1739294028903,0.31776799,629.39,627.64,0.29230641]
[1739294029194,0.31776799,629.39,627.66,0.31864385]
[1739294029393,0.31776799,629.39,627.67,0.29230641]
[1739294029595,0.31776799,629.39,627.69,0.31862862]
[1739294029791,0.31776799,629.39,627.7,0.29230641]
[1739294029996,0.31776799,629.39,627.69,0.31862862]
[1739294030213,0.31776799,629.39,627.7,0.29228703]
[1739294030398,0.31776799,629.39,627.72,0.31861339]
[1739294030592,0.31776799,629.39,627.73,0.29228703]
[1739294030798,0.31776799,629.39,627.75,0.31859816]
[1739294031000,0.31776799,629.39,627.76,0.29228703]
[1739294031301,0.31776799,629.39,627.78,0.31858294]
[1739294031501,0.31776799,629.39,627.79,0.29228703]
[1739294031701,0.31776799,629.39,627.81,0.31856771]
[1739294031901,0.31776799,629.39,627.82,0.29222472]
[1739294032101,0.31776799,629.39,627.84,0.31855249]
[1739294032300,0.31776799,629.39,627.85,0.29222472]
[1739294032500,0.31776799,629.39,627.87,0.31853727]
[1739294032696,0.31776799,629.39,627.88,0.29222472]
[1739294032896,0.31776799,629.39,627.9,0.31852205]
[1739294033100,0.31776799,629.39,627.91,0.29222472]
[1739294033296,0.31776799,629.39,627.92,0.61073663]
[1739294033501,0.31776799,629.39,627.93,1.28311807]
[1739294033702,0.31776799,629.39,627.94,1.28313404]
[1739294033903,0.31776799,629.39,627.95,0.61072865]
[1739294034102,0.31776799,629.39,627.96,0.61072358]
[1739294034303,0.31776799,629.39,627.97,1.28311883]
[1739294034501,0.31776799,629.39,627.98,0.61071344]
[1739294034802,0.31776799,629.39,627.99,0.61070836]
[1739294035103,0.31776799,629.39,628.0,0.61070329]
[1739294035403,0.31776799,629.39,627.53,1.66035155]
[1739294035404,0.31776799,629.39,628.01,1.28309854]
[1739294035702,0.31776799,629.39,628.02,1.28309347]
[1739294035901,0.31776799,629.39,628.03,0.61068808]
[1739294036102,0.31776799,629.39,628.04,0.61068301]
[1739294036306,0.31776799,629.39,628.05,0.31844598]
[1739294036499,0.31776799,629.39,628.06,0.29223196]
[1739294036696,0.31776799,629.39,628.07,0.31843584]
[1739294036895,0.31776799,629.39,628.08,0.29223196]
[1739294037102,0.31776799,629.39,628.09,0.3184257]
[1739294037301,0.31776799,629.39,628.1,0.29223196]
[1739294037597,0.31776799,629.39,628.09,0.3184257]
[1739294037598,3.79949059,629.38,628.09,0.3184257]
[1739294037799,0.31776799,629.39,628.09,0.3184257]
[1739294037999,0.31776799,629.39,627.49,1.16294262]
[1739294038197,0.31776799,629.39,627.5,0.29253804]
[1739294038403,5.67414408,629.38,627.5,0.29253804]
[1739294038599,0.31778314,629.36,627.5,0.29253804]
[1739294038821,0.31778314,629.36,627.49,1.16294262]
[1739294039207,0.31778314,629.36,627.5,0.29251917]
[1739294039603,0.31778314,629.36,627.51,0.31872002]
[1739294039804,0.31778314,629.36,627.51,0.61123919]
[1739294040004,0.31778314,629.36,627.52,1.28410151]
[1739294040203,0.31778314,629.36,627.53,0.61122903]
[1739294040426,0.31778314,629.36,627.54,0.96538657]
[1739294040605,0.31778314,629.36,627.55,0.61121887]
[1739294040807,0.31778314,629.36,627.56,0.61115282]
[1739294041023,0.31778314,629.36,627.57,0.2924582]
[1739294041307,0.31778314,629.36,627.57,0.61114774]
[1739294041507,0.31778314,629.36,627.58,0.2924582]
[1739294042106,0.31778314,629.36,627.57,0.31868954]
[1739294042807,0.31778314,629.36,627.58,0.29242275]
[1739294045418,0.31778314,629.36,627.59,0.31867939]
[1739294045715,0.31778314,629.36,627.6,0.29242275]
[1739294045915,0.31778314,629.36,627.61,0.61104056]
[1739294046118,0.31778314,629.36,627.62,0.61103548]
[1739294046351,0.31778314,629.36,627.63,0.29237133]
[1739294046519,0.31778314,629.36,627.63,0.61103041]
[1739294046719,0.31778314,629.36,627.64,0.29237133]
[1739294047224,0.31778314,629.36,627.65,0.31864892]
[1739294047420,0.31778314,629.36,627.66,0.29237133]
[1739294047915,0.31778314,629.36,627.68,0.31863369]
[1739294048125,0.31778314,629.36,627.69,0.29237133]
[1739294048317,0.31778314,629.36,627.7,0.29237133]
[1739294048521,0.31778314,629.36,627.71,0.29237133]
[1739294048719,0.31778314,629.36,627.72,0.61098472]
[1739294048918,0.31778314,629.36,627.73,0.61097964]
[1739294049113,0.31778314,629.36,627.74,0.61097457]
[1739294049318,0.31778314,629.36,627.75,0.61096949]
[1739294049554,0.31778314,629.36,627.76,1.28358818]
[1739294049714,0.31778314,629.36,627.77,0.61095934]
[1739294049920,0.31778314,629.36,627.78,0.61095427]
[1739294050121,0.31778314,629.36,627.79,0.61094919]
[1739294050317,0.31778314,629.36,627.8,0.61094412]
[1739294050517,0.31778314,629.36,627.81,0.61093904]
[1739294050723,0.31778314,629.36,627.82,1.28355773]
[1739294050922,0.31778314,629.36,627.34,1.66081378]
[1739294050923,0.31778314,629.36,627.83,0.6109289]
[1739294051124,0.31778314,629.36,627.84,0.31855249]
[1739294051320,0.31778314,629.36,627.85,0.29237133]
[1739294052320,0.31778314,629.36,627.86,0.31854235]
[1739294052521,0.31778314,629.36,627.87,0.29237133]
[1739294053023,0.31778314,629.36,627.88,0.3185322]
[1739294053227,0.31778314,629.36,627.89,0.29237133]
[1739294053420,0.31778314,629.36,627.9,0.31852205]
[1739294053620,0.31778314,629.36,627.91,0.29237133]
[1739294053926,0.31778314,629.36,627.92,0.31851191]
[1739294054127,0.31778314,629.36,627.93,0.29237133]
[1739294054327,0.31778314,629.36,627.94,0.31850176]
[1739294054525,0.31778314,629.36,627.95,0.29237133]
[1739294054724,0.31778314,629.36,627.96,0.31849162]
[1739294054968,0.31778314,629.36,627.97,0.29237133]
[1739294055122,0.31778314,629.36,627.98,0.31848148]
[1739294055327,0.31778314,629.36,627.99,0.29237133]
[1739294055527,0.31778314,629.36,628.0,0.31847133]
[1739294055723,0.31778314,629.36,628.01,0.29237133]
[1739294055923,0.31778314,629.36,628.02,0.31846119]
[1739294056127,0.31778314,629.36,628.03,0.29237133]
[1739294056329,0.31778314,629.36,628.04,0.31845105]
[1739294056525,0.31778314,629.36,628.05,0.29237133]
[1739294056831,0.31778314,629.36,628.06,0.31844091]
[1739294057036,0.31778314,629.36,628.07,0.29225063]
[1739294057330,0.31778314,629.36,628.08,0.31843077]
[1739294057531,0.31778314,629.36,628.09,0.29225063]
[1739294057829,0.31778314,629.36,628.1,0.31842063]
[1739294058032,0.31778314,629.36,628.11,0.29225063]
[1739294058928,0.31778314,629.36,628.12,0.31841049]
[1739294059158,0.31778314,629.36,628.13,0.29225063]
[1739294059334,0.31778314,629.36,628.14,0.31840035]
[1739294059533,0.31778314,629.36,628.15,0.29225063]
[1739294060434,0.31778314,629.36,628.14,0.31840035]
[1739294060634,0.31778314,629.36,628.15,0.29222463]
[1739294061233,0.31778314,629.36,628.15,0.61061991]
[1739294061435,0.31778314,629.36,628.16,0.29222463]
[1739294062129,0.31778314,629.36,628.15,0.31839528]
[1739294062346,0.31778314,629.36,628.16,0.29220912]
[1739294067641,0.31778314,629.36,628.15,0.31839528]
[1739294067840,0.31778314,629.36,628.16,0.29220564]
[1739294069238,0.31778314,629.36,628.16,0.61059585]
[1739294069439,0.31778314,629.36,628.17,0.29221157]
[1739294071336,0.31778314,629.36,628.16,0.31839021]
[1739294072438,0.31778314,629.36,628.17,0.29222478]
[1739294073243,0.31778314,629.36,628.18,0.29221932]
[1739294073442,0.31778314,629.36,628.19,0.29221932]
[1739294073643,0.31778314,629.36,628.16,0.31839021]
[1739294073844,0.31778314,629.36,628.17,0.29221551]
[1739294074546,0.31778314,629.36,628.16,0.31839021]
[1739294074946,0.31778314,629.36,628.17,0.29222415]
[1739294075146,0.31778314,629.36,628.16,0.31839021]
[1739294077442,0.31778314,629.36,628.17,0.29221092]
[1739294077940,0.31778314,629.36,628.16,0.31839021]
[1739294078142,0.31778314,629.36,628.18,0.31838008]
[1739294078341,0.31778314,629.36,628.19,0.29217704]
[1739294078544,0.31778314,629.36,628.2,0.31836994]
[1739294078741,0.31778314,629.36,628.21,0.29216428]
[1739294079039,0.31778314,629.36,628.22,0.31835981]
[1739294080147,0.31778314,629.36,628.23,0.29216568]
[1739294080345,0.31778314,629.36,628.22,0.31835981]
[1739294080541,0.31778314,629.36,628.23,0.29216814]
[1739294081241,0.31778314,629.36,628.23,0.61052288]
[1739294081447,0.31778314,629.36,628.24,0.29216814]
[1739294082548,0.31778314,629.36,628.25,0.3183446]
[1739294082746,0.31778314,629.36,628.26,0.29216814]
[1739294083245,0.31778314,629.36,628.27,0.31833447]
[1739294083442,0.31778314,629.36,628.28,0.29216814]
[1739294083647,0.31778314,629.36,628.29,0.31832434]
[1739294083943,0.31778314,629.36,628.3,0.29216814]
[1739294084144,0.31778314,629.36,628.31,0.3183142]
[1739294084345,0.31778314,629.36,628.32,0.29216814]
[1739294084748,0.31778314,629.36,628.32,0.61047728]
[1739294084943,0.31778314,629.36,628.33,0.29216814]
[1739294085345,0.31778314,629.36,628.33,0.61047221]
[1739294085547,0.31778314,629.36,628.34,0.29216814]
[1739294085848,0.31778314,629.36,628.33,0.31830407]
[1739294086047,0.31778314,629.36,628.34,0.29214369]
[1739294087850,0.31778314,629.36,628.35,0.29214842]
[1739294088050,0.31778314,629.36,628.36,0.29214842]
[1739294088250,0.31778314,629.36,628.34,0.29214842]
[1739294089252,0.31778314,629.36,628.34,0.61044743]
[1739294089446,0.31778314,629.36,628.35,0.29214842]
[1739294092051,0.31778314,629.36,628.36,0.29214379]
[1739294092253,0.31778314,629.36,628.35,0.29214379]
[1739294092552,0.31778314,629.36,628.36,0.29214379]
[1739294092752,0.31778314,629.36,628.35,0.29214379]
[1739294092946,0.31778314,629.36,628.36,0.29214379]
[1739294093149,0.31778314,629.36,628.37,0.29213694]
[1739294093350,0.31778314,629.36,628.35,0.29213694]
[1739294093549,0.31778314,629.36,628.36,0.29213694]
[1739294093851,0.31778314,629.36,628.37,0.29213694]
[1739294094046,0.31778314,629.36,628.35,0.29213694]
[1739294094251,0.31778314,629.36,628.36,0.29213694]
[1739294094451,0.31778314,629.36,628.37,0.29213694]
[1739294094652,0.31778314,629.36,628.38,0.29213694]
[1739294094848,0.31778314,629.36,628.34,0.31829901]
[1739294094849,0.31778314,629.36,628.35,0.29213694]
[1739294095050,0.31778314,629.36,628.36,0.29213694]
[1739294095250,0.31778314,629.36,628.35,0.29213694]
[1739294095450,0.31778314,629.36,628.36,0.29213694]
[1739294095649,0.31778314,629.36,628.35,0.29213694]
[1739294095848,0.31778314,629.36,628.36,0.29213694]
[1739294096045,0.31778314,629.36,628.35,0.29213694]
[1739294096247,0.31778314,629.36,628.36,0.61042581]
[1739294096447,0.31778314,629.36,628.37,0.29213694]
[1739294105354,1.17098318,629.6,628.37,0.29213694]
[1739294105554,1.17098318,629.6,628.37,0.61042075]
[1739294105754,1.17098318,629.6,628.38,0.29213694]
[1739294107350,4.43077522,629.74,628.38,0.29213694]
[1739294107549,0.31759643,629.73,628.38,0.29213694]
[1739294107748,2.25223058,629.73,628.38,0.29213694]
[1739294107953,2.8137375,629.73,628.38,0.29213694]
[1739294108355,5.73547651,629.72,628.37,0.31828381]
[1739294108550,5.73547651,629.71,628.38,0.29216948]
[1739294108748,5.73547651,629.7,628.38,0.29216948]
[1739294108949,5.73547651,629.69,628.38,0.29216948]
[1739294109258,5.73547651,629.72,628.37,0.31828381]
[1739294109758,1.93463415,629.72,628.37,0.31828381]
[1739294109955,2.8137375,629.73,628.37,0.31828381]
[1739294110157,0.31759643,629.73,628.37,0.31828381]
[1739294110858,1.17098318,629.46,628.13,1.16294262]
[1739294111058,0.3177377,629.45,628.14,0.29227386]
[1739294112260,0.3177377,629.45,628.15,0.29226601]
[1739294112457,0.3177377,629.45,628.14,0.28008461]
[1739294112651,0.3177377,629.45,628.13,1.16294262]
[1739294113460,0.3177377,629.45,628.14,0.29226539]
[1739294113659,0.3177377,629.45,627.75,0.9658913]
[1739294113959,0.3177377,629.45,627.77,0.31858801]
[1739294114154,0.3177377,629.45,627.78,0.29224677]
[1739294114360,0.3177377,629.45,627.8,0.31857279]
[1739294114561,0.3177377,629.45,627.81,0.29224677]
[1739294114760,0.3177377,629.45,627.83,0.31855757]
[1739294115059,0.3177377,629.45,627.84,0.29224677]
[1739294115256,0.3177377,629.45,627.85,0.61079419]
[1739294115454,0.3177377,629.45,627.86,1.28438341]
[1739294115653,0.3177377,629.45,627.87,1.28437833]
[1739294115860,0.3177377,629.45,627.88,0.61077897]
[1739294116159,0.3177377,629.45,627.89,1.28436819]
[1739294116358,0.3177377,629.45,627.9,0.29224677]
[1739294116563,0.3177377,629.45,627.91,0.31851698]
[1739294116761,0.3177377,629.45,627.92,0.29224677]
[1739294116961,0.3177377,629.45,627.93,0.31850683]
[1739294117160,0.3177377,629.45,627.94,0.29224677]
[1739294117362,0.3177377,629.45,627.95,0.31849669]
[1739294117657,0.3177377,629.45,627.96,0.29223603]
[1739294117863,0.3177377,629.45,627.97,0.31848655]
[1739294118059,0.3177377,629.45,627.98,0.29223603]
[1739294118357,0.3177377,629.45,627.99,0.3184764]
[1739294118563,0.3177377,629.45,628.0,0.29223603]
[1739294118761,0.3177377,629.45,628.01,0.31846626]
[1739294118969,0.3177377,629.45,628.02,0.29223603]
[1739294119160,0.3177377,629.45,628.03,0.31845612]
[1739294119663,0.3177377,629.45,628.04,0.2922406]
[1739294121157,0.3177377,629.45,628.05,0.29230474]
[1739294121360,0.3177377,629.45,628.03,0.31845612]
[1739294121361,0.3177377,629.45,628.06,0.29230474]
[1739294121558,0.3177377,629.45,628.04,0.29230474]
[1739294121760,0.3177377,629.45,628.05,0.29230474]
[1739294121961,0.3177377,629.45,628.06,0.29230474]
[1739294122192,0.3177377,629.45,628.04,0.29230474]
[1739294122357,0.3177377,629.45,628.05,0.29230474]
[1739294122561,0.3177377,629.45,628.04,0.29230474]
[1739294122763,0.3177377,629.45,628.05,0.29230474]
[1739294122959,0.3177377,629.45,628.04,0.29230474]
[1739294124663,3.80084236,629.44,628.04,0.29230474]
[1739294124868,3.80084236,629.44,628.05,0.2922551]
[1739294124869,4.11859016,629.43,628.05,0.2922551]
[1739294125067,4.11859521,629.42,628.04,0.2922551]
[1739294125368,4.11860026,629.41,628.05,0.2922551]
[1739294125565,4.1186053,629.4,628.04,0.2922551]
[1739294125768,3.80084236,629.39,628.05,0.2922551]
[1739294125963,4.1186154,629.38,628.06,0.2922551]
[1739294126162,4.11862045,629.37,628.04,0.2922551]
[1739294126363,4.1186255,629.36,628.03,0.31845612]
[1739294126565,4.11863055,629.35,628.05,0.2922551]
[1739294126868,3.80084236,629.34,628.05,0.2922551]
[1739294127069,0.31778819,629.35,628.06,0.2922551]
[1739294127265,0.31778819,629.35,628.07,0.2922551]
[1739294127663,0.31778819,629.35,628.08,0.2922551]
[1739294127864,0.31778819,629.35,628.09,0.2922551]
[1739294128068,0.31778819,629.35,628.04,0.2922551]
[1739294128263,0.31778819,629.35,628.1,0.2922551]
[1739294128470,0.31778819,629.35,628.11,0.2922551]
[1739294128671,0.31778819,629.35,628.05,0.2922551]
[1739294128874,0.31778819,629.35,628.06,0.2922551]
[1739294129074,0.31778819,629.35,628.07,0.29226169]
[1739294129276,0.31778819,629.35,628.04,0.31845105]
[1739294129277,0.31778819,629.35,628.05,0.29226169]
[1739294129476,0.31778819,629.35,628.06,0.29226169]
[1739294129712,3.80084236,629.34,628.06,0.29226169]
[1739294129873,3.80084236,629.33,628.07,0.29226169]
[1739294130073,3.80084236,629.32,628.08,0.61069246]
[1739294130272,3.80084236,629.31,628.09,0.29226169]
[1739294130470,3.80084236,629.3,628.09,0.29226169]
[1739294130671,3.80084236,629.29,628.1,0.29226169]
[1739294130876,3.80084236,629.28,628.11,0.29226169]
[1739294131075,3.80084236,629.27,628.12,0.29226169]
[1739294131272,3.80084236,629.26,628.13,0.29226169]
[1739294131479,3.80084236,629.34,628.14,0.29226169]
[1739294131671,3.80084236,629.33,628.14,0.29226169]
[1739294131892,3.80084236,629.32,628.15,0.29226169]
[1739294132073,3.80084236,629.31,628.16,0.29226169]
[1739294132277,3.80084236,629.3,628.17,0.29226169]
[1739294132577,5.73547651,629.34,628.18,0.29226169]
[1739294132777,5.73547651,629.34,628.09,0.29226169]
[1739294133016,1.93463415,629.34,628.1,0.29226169]